fUST/lending_fUST_20250615
["ID","MTS","AMOUNT","RATE_DAILY","PERIOD"]
[365966610,1749999036691,-460.0,0.00020547,2]
[365966612,1749999036804,-160.0,0.00020547,2]
[365966614,1749999036814,-460.0,0.00020547,2]
[365966616,1749999036823,-571.53,0.00020547,2]
[365966618,1749999036833,-1339.6,0.00020547,2]
[365966620,1749999036842,-1739.19,0.00020547,2]
[365966622,1749999036852,-2000.6,0.00020547,2]
[365966624,1749999036861,-1562.8,0.00020547,2]
[365966626,1749999036870,-460.0,0.00020547,2]
[365966628,1749999036880,-1719.4,0.00020547,2]
[365966630,1749999036890,-460.0,0.00020547,2]
[365966632,1749999036899,-490.29,0.00020547,2]
[365966634,1749999036909,-1436.8,0.00020547,2]
[365966636,1749999036919,-608.54,0.00020547,2]
[365966638,1749999036928,-617.03,0.00020547,2]
[365966640,1749999036937,-779.74,0.00020547,2]
[365966642,1749999036947,-699.59,0.00020547,2]
[365966644,1749999036955,-162.47,0.00020547,2]
[365966646,1749999036966,-460.0,0.00020547,2]
[365966648,1749999036975,-460.0,0.00020547,2]
[365966650,1749999036984,-460.0,0.00020547,2]
[365966652,1749999036994,-712.36,0.00020547,2]
[365966654,1749999037003,-365.68,0.00020547,2]
[365966656,1749999037012,-864.74,0.00020547,2]
[365966658,1749999037021,-490.7,0.00020547,2]
[365966660,1749999037031,-1337.69,0.00020547,2]
[365966662,1749999037040,-2130.12,0.00020547,2]
[365966664,1749999037050,-1180.6,0.00020547,2]
[365966666,1749999037059,-317.0,0.00020578,2]
[365966668,1749999037069,-391.92,0.000206,2]
[365966669,1749999037079,-840.22,0.000206,2]
[365966671,1749999037088,-1047.04731648,0.000206,3]
[365966673,1749999037098,-1047.04731627,0.000206,3]
[365966676,1749999037108,-1047.04731627,0.000206,3]
[365966678,1749999037117,-1047.04731627,0.000206,3]
[365966679,1749999037127,-1047.04731627,0.000206,3]
[365966682,1749999037136,-1219.24215716,0.00020722,2]
[365966683,1749999037146,-1047.04731627,0.00020762,3]
[365966686,1749999037156,-1000.0,0.00020765,2]
[365966688,1749999037166,-460.0,0.00020821,2]
[365966689,1749999037175,-460.0,0.00020821,2]
[365966691,1749999037185,-460.0,0.00020821,2]
[365966693,1749999037194,-571.53,0.00020821,2]
[365966695,1749999037204,-678.57158434,0.00020821,2]
[365966698,1749999037221,-661.02841566,0.00020821,2]
[365966700,1749999037231,-1739.19,0.00020821,2]
[365966702,1749999037241,-426.4643885,0.00020821,2]
[365966799,1749999038384,-500.0,0.00019176,2]
[365966800,1749999038394,-500.0,0.00019176,2]
[365966801,1749999038403,-500.0,0.00019176,2]
[365966802,1749999038412,-500.0,0.00019176,2]
[365966803,1749999038422,-500.0,0.00019176,2]
[365966804,1749999038433,-500.0,0.00019176,2]
[365966805,1749999038444,-500.0,0.00019176,2]
[365966806,1749999038453,-500.0,0.00019176,2]
[365966807,1749999038462,-500.0,0.00019176,2]
[365966808,1749999038471,-500.0,0.00019176,2]
[365966809,1749999038480,-500.0,0.00019176,2]
[365966810,1749999038489,-500.0,0.00019176,2]
[365966811,1749999038499,-500.0,0.00019178,2]
[365966812,1749999038509,-539.9211614,0.00019178,2]
[365966813,1749999038519,-460.0,0.00019178,2]
[365966814,1749999038528,-380.69,0.00019452,2]
[365966815,1749999038537,-1574.1356115,0.00020821,2]
[365966816,1749999038547,-1562.8,0.00020821,2]
[365966817,1749999038556,-460.0,0.00020821,2]
[365966818,1749999038566,-1719.4,0.00020821,2]
[365966819,1749999038575,-460.0,0.00020821,2]
[365966820,1749999038585,-490.29,0.00020821,2]
[365966821,1749999038595,-1436.8,0.00020821,2]
[365966822,1749999038605,-608.54,0.00020821,2]
[365966823,1749999038614,-617.03,0.00020821,2]
[365966824,1749999038625,-779.74,0.00020821,2]
[365966825,1749999038634,-699.59,0.00020821,2]
[365966826,1749999038643,-460.0,0.00020821,2]
[365966827,1749999038654,-460.0,0.00020821,2]
[365966828,1749999038664,-460.0,0.00020821,2]
[365966829,1749999038673,-712.36,0.00020821,2]
[365966830,1749999038682,-864.74,0.00020821,2]
[365966831,1749999038691,-1337.69,0.00020821,2]
[365966832,1749999038701,-2130.12,0.00020821,2]
[365966833,1749999038710,-1180.6,0.00020821,2]
[365966834,1749999038718,-420.0,0.00020887,2]
[365966835,1749999038728,-1047.04731627,0.00020934,4]
[365966836,1749999038737,-286.0,0.00020988,2]
[365966837,1749999038747,-1428.65,0.00021007,2]
[365966838,1749999038756,-500.0,0.00021095,3]
[365966839,1749999038765,-460.0,0.00021095,2]
[365966840,1749999038774,-460.0,0.00021095,2]
[365966841,1749999038783,-460.0,0.00021095,2]
[365966842,1749999038793,-571.53,0.00021095,2]
[365966843,1749999038803,-1739.19,0.00021095,2]
[365966844,1749999038812,-2000.6,0.00021095,2]
[365966845,1749999038821,-1562.8,0.00021095,2]
[365966846,1749999038830,-460.0,0.00021095,2]
[365966847,1749999038839,-1719.4,0.00021095,2]
[365966848,1749999038849,-460.0,0.00021095,2]
[365966849,1749999038858,-490.29,0.00021095,2]
[365966850,1749999038868,-1436.8,0.00021095,2]
[365966851,1749999038877,-608.54,0.00021095,2]
[365966852,1749999038886,-617.03,0.00021095,2]
[365966853,1749999038896,-779.74,0.00021095,2]
[365966854,1749999038905,-699.59,0.00021095,2]
[365966855,1749999038914,-460.0,0.00021095,2]
[365966856,1749999038923,-460.0,0.00021095,2]
[365966857,1749999038932,-460.0,0.00021095,2]
[365966858,1749999038941,-712.36,0.00021095,2]
[365966859,1749999038950,-864.74,0.00021095,2]
[365966860,1749999038960,-1337.69,0.00021095,2]
[365966861,1749999038969,-2130.12,0.00021095,2]
[365966862,1749999038979,-1180.6,0.00021095,2]
[365966863,1749999038988,-1047.04731627,0.00021107,4]
[365966864,1749999038997,-600.0,0.00021164,2]
[365966866,1749999039006,-1047.04731627,0.00021279,5]
[365966868,1749999039015,-460.0,0.00021369,2]
[365966870,1749999039025,-460.0,0.00021369,2]
[365966872,1749999039034,-460.0,0.00021369,2]
[365966874,1749999039043,-571.53,0.00021369,2]
[365966876,1749999039053,-1739.19,0.00021369,2]
[365966878,1749999039062,-2000.6,0.00021369,2]
[365966880,1749999039072,-1562.8,0.00021369,2]
[365966882,1749999039081,-460.0,0.00021369,2]
[365966884,1749999039090,-1719.4,0.00021369,2]
[365966886,1749999039099,-460.0,0.00021369,2]
[365966888,1749999039109,-490.29,0.00021369,2]
[365966889,1749999039118,-1436.8,0.00021369,2]
[365966890,1749999039127,-608.54,0.00021369,2]
[365966891,1749999039136,-617.03,0.00021369,2]
[365966893,1749999039145,-779.74,0.00021369,2]
[365966895,1749999039153,-699.59,0.00021369,2]
[365966897,1749999039162,-460.0,0.00021369,2]
[365966899,1749999039171,-460.0,0.00021369,2]
[365966901,1749999039181,-460.0,0.00021369,2]
[365966903,1749999039190,-712.36,0.00021369,2]
[365966905,1749999039199,-864.74,0.00021369,2]
[365966907,1749999039209,-1337.69,0.00021369,2]
[365966908,1749999039218,-2130.12,0.00021369,2]
[365966910,1749999039228,-1180.6,0.00021369,2]
[365966911,1749999039238,-1047.04731627,0.00021452,5]
[365966912,1749999039247,-1219.24215716,0.00021543,2]
[365966914,1749999039257,-365.3426848,0.00021589,2]
[365966917,1749999039268,-365.3426848,0.00021589,2]
[365966918,1749999039277,-365.3426848,0.00021589,2]
[365966920,1749999039286,-365.3426848,0.00021589,2]
[365966922,1749999039296,-365.3426848,0.00021589,2]
[365966924,1749999039307,-729.323889,0.00021589,2]
[365966926,1749999039317,-279407.32416,0.00021623,2]
[365966928,1749999039327,-1047.04731627,0.00021624,5]
[365966930,1749999039336,-500.0,0.00021643,4]
[365966932,1749999039347,-460.0,0.00021643,2]
[365966935,1749999039356,-460.0,0.00021643,2]
[365966936,1749999039366,-358.55872881,0.00021643,2]
[365966937,1749999039375,-571.53,0.00021643,2]
[365966938,1749999039384,-1739.19,0.00021643,2]
[365966939,1749999039394,-2000.6,0.00021643,2]
[365966940,1749999039404,-1562.8,0.00021643,2]
[365966941,1749999039413,-460.0,0.00021643,2]
[365966942,1749999039423,-1719.4,0.00021643,2]
[365966943,1749999039435,-460.0,0.00021643,2]
[365966944,1749999039444,-490.29,0.00021643,2]
[365966945,1749999039454,-1436.8,0.00021643,2]
[365966946,1749999039463,-608.54,0.00021643,2]
[365966947,1749999039474,-617.03,0.00021643,2]
[365966948,1749999039484,-779.74,0.00021643,2]
[365966949,1749999039494,-699.59,0.00021643,2]
[365966950,1749999039504,-460.0,0.00021643,2]
[365966951,1749999039515,-460.0,0.00021643,2]
[365966952,1749999039525,-406.35,0.00021643,2]
[365966953,1749999039535,-712.36,0.00021643,2]
[365966954,1749999039545,-864.74,0.00021643,2]
[365966955,1749999039554,-1337.69,0.00021643,2]
[365966956,1749999039564,-2130.12,0.00021643,2]
[365966957,1749999039574,-1180.6,0.00021643,2]
[365966958,1749999039582,-185.0,0.00021662,2]
[365966959,1749999039592,-500.0,0.00021673,2]
[365966960,1749999039601,-500.0,0.00021673,2]
[365966961,1749999039610,-500.72314247,0.00021673,2]
[365966962,1749999039620,-500.0,0.00021673,2]
[365966963,1749999039629,-500.0,0.00021673,2]
[365966976,1749999039742,-500.0,0.00021673,2]
[365966979,1749999039753,-500.0,0.00021673,2]
[365966981,1749999039764,-500.0,0.00021673,2]
[365966983,1749999039773,-500.0,0.00021673,2]
[365966985,1749999039784,-546.17308086,0.00021673,2]
[365966987,1749999039793,-600.0,0.00021673,2]
[365966989,1749999039804,-1047.04731627,0.00021797,6]
[365966991,1749999039812,-1687.02,0.00021835,2]
[365966993,1749999039823,-1687.02,0.00021835,2]
[365966995,1749999039832,-1687.02,0.00021835,2]
[365966997,1749999039841,-1687.02,0.00021835,2]
[365966999,1749999039851,-1687.02,0.00021835,2]
[365967000,1749999039861,-1687.02,0.00021835,2]
[365967002,1749999039870,-1687.02,0.00021835,2]
[365967004,1749999039879,-1687.02,0.00021835,2]
[365967006,1749999039888,-1687.02,0.00021835,2]
[365967008,1749999039897,-1687.02,0.00021835,2]
[365967010,1749999039907,-1687.02,0.00021835,2]
[365967012,1749999039916,-1687.02,0.00021835,2]
[365967014,1749999039925,-1687.02,0.00021835,2]
[365967016,1749999039934,-1687.02,0.00021835,2]
[365967018,1749999039944,-1687.02,0.00021835,2]
[365967020,1749999039953,-1687.02,0.00021835,2]
[365967022,1749999039963,-1687.02,0.00021835,2]
[365967024,1749999039972,-1687.02,0.00021835,2]
[365967026,1749999039982,-548.82423603,0.00021857,2]
[365967028,1749999039992,-500.0,0.00021857,2]
[365967030,1749999040001,-500.0,0.00021857,2]
[365967032,1749999040010,-158.9019424,0.00021863,2]
[365967033,1749999040019,-307.5017373,0.00021863,2]
[365967035,1749999040028,-354.0646596,0.00021863,2]
[365967037,1749999040038,-565.974267,0.00021863,2]
[365967039,1749999040047,-306.0,0.00021863,2]
[365967041,1749999040057,-306.0,0.00021863,2]
[365967043,1749999040067,-153.0,0.00021863,2]
[365967045,1749999040078,-158.9019424,0.00021863,2]
[365967047,1749999040088,-177.0323298,0.00021863,2]
[365967049,1749999040098,-573.8932911,0.00021863,2]
[365967051,1749999040108,-177.0323298,0.00021863,2]
[365967053,1749999040118,-158.9019424,0.00021863,2]
[365967054,1749999040128,-573.8932911,0.00021863,2]
[365967055,1749999040138,-158.9019424,0.00021863,2]
[365967056,1749999040149,-176.246512,0.00021863,2]
[365967057,1749999040161,-573.8932911,0.00021863,2]
[365967058,1749999040172,-573.8932911,0.00021863,2]
[365967059,1749999040181,-153.0,0.00021863,2]
[365967060,1749999040192,-153.0,0.00021863,2]
[365967061,1749999040203,-500.0,0.00021864,2]
[365967063,1749999040214,-10644.74551358,0.0002187,2]
[365967065,1749999040224,-500.0,0.000219,2]
[365967067,1749999040235,-500.0,0.000219,2]
[365967069,1749999040246,-502.62722475,0.000219,2]
[365967071,1749999040257,-500.0,0.000219,2]
[365967073,1749999040267,-500.0,0.000219,2]
[365967075,1749999040278,-506.87102913,0.000219,2]
[365967076,1749999040288,-160.63259287,0.000219,2]
[365967078,1749999040300,-500.0,0.000219,2]
[365967080,1749999040317,-504.43395862,0.000219,2]
[365967082,1749999040328,-500.0,0.000219,2]
[365967108,1749999040549,-37815.41,0.000219,2]
[365967110,1749999040561,-203.68112716,0.00021917,2]
[365967112,1749999040572,-500.0,0.00021917,2]
[365967114,1749999040584,-500.0,0.00021917,2]
[365967116,1749999040595,-500.0,0.00021917,2]
[365967118,1749999040606,-500.0,0.00021917,2]
[365967120,1749999040617,-460.0,0.00021917,2]
[365967122,1749999040628,-477.18500925,0.00021917,2]
[365967124,1749999040639,-160.0,0.00021917,2]
[365967126,1749999040651,-500.0,0.00021917,2]
[365967128,1749999040661,-500.0,0.00021917,2]
[365967130,1749999040672,-500.0,0.00021917,2]
[365967132,1749999040683,-500.0,0.00021917,2]
[365967134,1749999040694,-500.0,0.00021917,2]
[365967136,1749999040705,-500.0,0.00021917,2]
[365967138,1749999040715,-500.0,0.00021917,2]
[365967140,1749999040726,-500.0,0.00021917,2]
[365967142,1749999040737,-504.23576132,0.00021917,2]
[365967144,1749999040750,-571.53,0.00021917,2]
[365967146,1749999040761,-1739.19,0.00021917,2]
[365967148,1749999040771,-2000.6,0.00021917,2]
[365967150,1749999040782,-1562.8,0.00021917,2]
[365967152,1749999040792,-332.79695119,0.00021917,2]
[365967154,1749999040802,-1719.4,0.00021917,2]
[365967156,1749999040824,-460.0,0.00021917,2]
[365967158,1749999040835,-490.29,0.00021917,2]
[365967160,1749999040845,-1436.8,0.00021917,2]
[365967162,1749999040855,-608.54,0.00021917,2]
[365967164,1749999040865,-617.03,0.00021917,2]
[365967166,1749999040874,-779.74,0.00021917,2]
[365967168,1749999040884,-699.59,0.00021917,2]
[365967170,1749999040894,-460.0,0.00021917,2]
[365967172,1749999040904,-460.0,0.00021917,2]
[365967174,1749999040914,-500.0,0.00021917,2]
[365967176,1749999040924,-500.0,0.00021917,2]
[365967178,1749999040933,-500.0,0.00021917,2]
[365967179,1749999040942,-712.36,0.00021917,2]
[365967182,1749999040955,-864.74,0.00021917,2]
[365967184,1749999040965,-500.0,0.00021917,2]
[365967186,1749999040975,-1337.69,0.00021917,2]
[365967187,1749999040984,-2130.12,0.00021917,2]
[365967189,1749999040994,-1180.6,0.00021917,2]
[365967191,1749999041003,-437.03504658,0.00021954,2]
[365967193,1749999041012,-1047.04731627,0.00021969,6]
[365967195,1749999041022,-258.77267647,0.00021973,2]
[365967197,1749999041032,-304.26549004,0.00021973,2]
[365967199,1749999041042,-501.7245671,0.00021973,2]
[365967201,1749999041055,-507.4259494,0.00021973,2]
[365967203,1749999041065,-151.0,0.00022,7]
[365967205,1749999041075,-391.92,0.00022,7]
[365967206,1749999041084,-840.22,0.00022,7]
[365967207,1749999041094,-169.0,0.00022,2]
[365967208,1749999041103,-160.0,0.00022,2]
[365967209,1749999041113,-106922.57,0.00022,7]
[365967211,1749999041122,-186.0,0.00022,2]
[365967212,1749999041132,-172.0,0.00022,2]
[365967214,1749999041141,-845.25843836,0.00022,7]
[365967216,1749999041151,-12535.62630729,0.00022,7]
[365967218,1749999041161,-2857.3,0.00022007,2]
[365967220,1749999041170,-73000.42006905,0.000221,2]
[365967222,1749999041179,-1047.04731627,0.00022141,6]
[365967224,1749999041189,-47850.76996886,0.00022185,2]
[365967226,1749999041198,-153.0,0.00022187,2]
[365967228,1749999041208,-153.0,0.00022187,2]
[365967229,1749999041217,-153.0,0.00022187,2]
[365967230,1749999041227,-153.0,0.00022187,2]
[365967231,1749999041237,-153.0,0.00022187,2]
[365967232,1749999041247,-153.0,0.00022187,2]
[365967234,1749999041259,-153.0,0.00022187,2]
[365967236,1749999041268,-153.0,0.00022187,2]
[365967238,1749999041278,-153.0,0.00022187,2]
[365967240,1749999041288,-153.0,0.00022187,2]
[365967242,1749999041297,-153.0,0.00022187,2]
[365967244,1749999041307,-153.0,0.00022187,2]
[365967246,1749999041329,-153.0,0.00022187,2]
[365967248,1749999041338,-153.0,0.00022187,2]
[365967250,1749999041348,-153.0,0.00022187,2]
[365967252,1749999041358,-153.0,0.00022187,2]
[365967254,1749999041368,-153.0,0.00022187,2]
[365967256,1749999041378,-153.0,0.00022187,2]
[365967258,1749999041387,-153.0,0.00022187,2]
[365967260,1749999041397,-153.0,0.00022187,2]
[365967262,1749999041406,-153.0,0.00022187,2]
[365967264,1749999041415,-153.0,0.00022187,2]
[365967266,1749999041425,-153.0,0.00022187,2]
[365967268,1749999041435,-153.0,0.00022187,2]
[365967270,1749999041446,-153.0,0.00022187,2]
[365967272,1749999041455,-153.0,0.00022187,2]
[365967274,1749999041465,-153.0,0.00022187,2]
[365967276,1749999041476,-153.0,0.00022187,2]
[365967278,1749999041486,-153.0,0.00022187,2]
[365967280,1749999041496,-153.0,0.00022187,2]
[365967282,1749999041506,-153.0,0.00022187,2]
[365967284,1749999041516,-153.0,0.00022187,2]
[365967286,1749999041526,-153.0,0.00022187,2]
[365967288,1749999041536,-500.0,0.00022191,5]
[365967290,1749999041546,-460.0,0.00022191,2]
[365967292,1749999041555,-571.53,0.00022191,2]
[365967294,1749999041571,-1739.19,0.00022191,2]
[365967296,1749999041581,-2000.6,0.00022191,2]
[365967298,1749999041590,-1562.8,0.00022191,2]
[365967300,1749999041599,-1719.4,0.00022191,2]
[365967302,1749999041609,-460.0,0.00022191,2]
[365967304,1749999041619,-490.29,0.00022191,2]
[365967306,1749999041628,-1436.8,0.00022191,2]
[365967308,1749999041638,-608.54,0.00022191,2]
[365967310,1749999041648,-617.03,0.00022191,2]
[365967312,1749999041657,-779.74,0.00022191,2]
[365967314,1749999041667,-699.59,0.00022191,2]
[365967316,1749999041677,-460.0,0.00022191,2]
[365967318,1749999041687,-460.0,0.00022191,2]
[365967320,1749999041696,-712.36,0.00022191,2]
[365967322,1749999041706,-864.74,0.00022191,2]
[365967324,1749999041715,-1337.69,0.00022191,2]
[365967326,1749999041725,-2130.12,0.00022191,2]
[365967328,1749999041734,-1180.6,0.00022191,2]
[365967330,1749999041744,-199.76697731,0.000222,69]
[365967332,1749999041754,-516.93256002,0.00022221,2]
[365967334,1749999041764,-500.0,0.00022221,2]
[365967336,1749999041773,-1000.0,0.00022221,2]
[365967338,1749999041783,-1000.0,0.00022221,2]
[365967340,1749999041792,-500.0,0.00022221,2]
[365967342,1749999041802,-1200.0,0.00022221,2]
[365967344,1749999041815,-600.0,0.0002226,2]
[365967346,1749999041825,-741.87,0.00022265,7]
[365967348,1749999041834,-1047.04731627,0.00022314,7]
[365967350,1749999041843,-587.0,0.00022319,2]
[365967352,1749999041853,-151.0,0.00022323,7]
[365967354,1749999041863,-1219.24215716,0.00022365,2]
[365967356,1749999041872,-741.87,0.00022365,6]
[365967358,1749999041881,-151.0,0.000224,10]
[365967360,1749999041891,-151.0,0.0002243,7]
[365967362,1749999041900,-54671.0,0.0002243,4]
[365967364,1749999041911,-437.03504658,0.00022442,2]
[365967366,1749999041920,-1000.0,0.00022448,2]
[365967368,1749999041929,-500.0,0.00022448,2]
[365967370,1749999041939,-1000.0,0.00022448,2]
[365967372,1749999041948,-460.0,0.00022465,2]
[365967374,1749999041957,-571.53,0.00022465,2]
[365967376,1749999041966,-1739.19,0.00022465,2]
[365967378,1749999041975,-2000.6,0.00022465,2]
[365967380,1749999041984,-1562.8,0.00022465,2]
[365967382,1749999041994,-1719.4,0.00022465,2]
[365967384,1749999042003,-460.0,0.00022465,2]
[365967386,1749999042012,-490.29,0.00022465,2]
[365967388,1749999042022,-1436.8,0.00022465,2]
[365967390,1749999042031,-608.54,0.00022465,2]
[365967392,1749999042040,-617.03,0.00022465,2]
[365967394,1749999042050,-779.74,0.00022465,2]
[365967396,1749999042059,-699.59,0.00022465,2]
[365967398,1749999042074,-460.0,0.00022465,2]
[365967400,1749999042083,-460.0,0.00022465,2]
[365967402,1749999042093,-712.36,0.00022465,2]
[365967404,1749999042102,-864.74,0.00022465,2]
[365967406,1749999042111,-500.0,0.00022465,2]
[365967408,1749999042121,-1337.69,0.00022465,2]
[365967410,1749999042130,-2130.12,0.00022465,2]
[365967412,1749999042140,-1180.6,0.00022465,2]
[365967414,1749999042149,-741.87,0.00022465,4]
[365967416,1749999042159,-1047.04731627,0.00022486,7]
[365967418,1749999042168,-151.0,0.000225,8]
[365967420,1749999042177,-437.03504658,0.00022549,2]
[365967422,1749999042187,-741.87,0.00022565,5]
[365967424,1749999042196,-221.458091,0.00022603,2]
[365967426,1749999042205,-1047.04731627,0.00022659,7]
[365967428,1749999042215,-741.87,0.00022665,3]
[365967430,1749999042224,-306.0,0.00022685,2]
[365967432,1749999042234,-500.0,0.00022739,6]
[365967434,1749999042243,-460.0,0.00022739,2]
[365967436,1749999042252,-571.53,0.00022739,2]
[365967439,1749999042262,-1739.19,0.00022739,2]
[365967440,1749999042271,-2000.6,0.00022739,2]
[365967442,1749999042280,-1562.8,0.00022739,2]
[365967444,1749999042289,-1719.4,0.00022739,2]
[365967446,1749999042298,-460.0,0.00022739,2]
[365967448,1749999042308,-490.29,0.00022739,2]
[365967450,1749999042321,-1436.8,0.00022739,2]
[365967452,1749999042330,-608.54,0.00022739,2]
[365967454,1749999042340,-617.03,0.00022739,2]
[365967457,1749999042351,-779.74,0.00022739,2]
[365967459,1749999042360,-699.59,0.00022739,2]
[365967460,1749999042369,-585.3022036,0.00022739,2]
[365967463,1749999042380,-460.0,0.00022739,2]
[365967465,1749999042389,-712.36,0.00022739,2]
[365967467,1749999042399,-864.74,0.00022739,2]
[365967469,1749999042408,-1337.69,0.00022739,2]
[365967471,1749999042417,-2130.12,0.00022739,2]
[365967482,1749999042522,-1180.6,0.00022739,2]
[365967484,1749999042532,-587.0,0.00022763,2]
[365967486,1749999042542,-741.87,0.00022765,3]
[365967490,1749999042552,-1500.0,0.00022768,2]
[365967493,1749999042564,-1500.0,0.00022768,2]
[365967496,1749999042575,-1800.0,0.00022768,2]
[365967499,1749999042585,-151.0,0.000228,5]
[365967501,1749999042595,-168.3351789,0.000228,2]
[365967503,1749999042604,-1047.04731627,0.00022831,8]
[365967505,1749999042614,-741.87,0.00022865,5]
[365967507,1749999042624,-185.0,0.00022871,7]
[365967509,1749999042634,-151.0,0.000229,5]
[365967511,1749999042643,-106922.57,0.000229,7]
[365967513,1749999042653,-37815.41,0.000229,2]
[365967514,1749999042663,-437.03504658,0.00022938,2]
[365967517,1749999042673,-741.87,0.00022965,5]
[365967519,1749999042683,-152395.41360669,0.00022982,2]
[365967523,1749999042692,-1500.0,0.00022996,2]
[365967525,1749999042702,-5000.0,0.00022996,2]
[365967528,1749999042712,-151.0,0.00022998,7]
[365967531,1749999042721,-160.0,0.00023,3]
[365967534,1749999042730,-229.86375354,0.00023,3]
[365967537,1749999042740,-424.47602138,0.00023,3]
[365967541,1749999042750,-835.55256958,0.00023,3]
[365967544,1749999042760,-1047.04731627,0.00023003,8]
[365967547,1749999042770,-4285.94,0.00023008,2]
[365967552,1749999042780,-460.0,0.00023013,2]
[365967554,1749999042790,-571.53,0.00023013,2]
[365967556,1749999042800,-1739.19,0.00023013,2]
[365967560,1749999042815,-2000.6,0.00023013,2]
[365967563,1749999042824,-1562.8,0.00023013,2]
[365967566,1749999042834,-1719.4,0.00023013,2]
[365967569,1749999042843,-460.0,0.00023013,2]
[365967571,1749999042852,-490.29,0.00023013,2]
[365967575,1749999042864,-1436.8,0.00023013,2]
[365967577,1749999042874,-608.54,0.00023013,2]
[365967580,1749999042884,-617.03,0.00023013,2]
[365967583,1749999042893,-779.74,0.00023013,2]
[365967586,1749999042902,-699.59,0.00023013,2]
[365967588,1749999042912,-460.0,0.00023013,2]
[365967591,1749999042922,-712.36,0.00023013,2]
[365967592,1749999042931,-864.74,0.00023013,2]
[365967595,1749999042941,-500.0,0.00023013,2]
[365967598,1749999042951,-1337.69,0.00023013,2]
[365967600,1749999042961,-2130.12,0.00023013,2]
[365967602,1749999042970,-1180.6,0.00023013,2]
[365967604,1749999042980,-151.73321023,0.00023014,2]
[365967606,1749999042990,-1748.010656,0.00023029,3]
[365967608,1749999042998,-437.0350466,0.00023031,2]
[365967610,1749999043008,-741.87,0.00023065,4]
[365967612,1749999043017,-185.0,0.00023099,2]
[365967614,1749999043027,-5000.0,0.0002312,2]
[365967616,1749999043036,-151.0,0.0002312,2]
[365967618,1749999043045,-151.0,0.0002312,2]
[365967620,1749999043055,-151.0,0.0002312,2]
[365967622,1749999043067,-151.0,0.0002312,2]
[365967624,1749999043076,-151.0,0.0002312,2]
[365967626,1749999043086,-1688.0,0.0002312,2]
[365967627,1749999043095,-500.0,0.0002312,2]
[365967629,1749999043105,-151.0,0.0002312,2]
[365967632,1749999043115,-226.76390347,0.0002312,2]
[365967634,1749999043124,-500.0,0.0002312,2]
[365967635,1749999043134,-500.0,0.0002312,2]
[365967638,1749999043143,-500.0,0.0002312,2]
[365967639,1749999043153,-500.0,0.0002312,2]
[365967641,1749999043162,-500.0,0.0002312,2]
[365967643,1749999043172,-500.0,0.0002312,2]
[365967645,1749999043181,-500.0,0.0002312,2]
[365967647,1749999043191,-500.0,0.0002312,2]
[365967649,1749999043200,-500.0,0.0002312,2]
[365967651,1749999043210,-500.0,0.0002312,2]
[365967653,1749999043220,-500.0,0.0002312,2]
[365967655,1749999043229,-500.0,0.0002312,2]
[365967657,1749999043239,-500.0,0.0002312,2]
[365967659,1749999043249,-207.4,0.0002312,2]